bitfinex/quotes_BTCUSD_20250515
["timestamp","ask_amount","ask_price","bid_price","bid_amount"]
[1747314051452,1.14700039,102530.0,102520.0,0.00314443]
[1747314051909,1.17780039,102530.0,102520.0,0.00314443]
[1747314052221,1.24114211,102530.0,102520.0,0.00314443]
[1747314052682,1.33845151,102530.0,102520.0,0.00314443]
[1747314052886,1.35299236,102530.0,102520.0,0.00114443]
[1747314053292,1.43090811,102530.0,102520.0,0.00114443]
[1747314053561,1.35299236,102530.0,102520.0,0.00114443]
[1747314054186,1.77427236,102530.0,102520.0,0.00114443]
[1747314054408,1.77427236,102530.0,102520.0,0.00014443]
[1747314054747,1.77627236,102530.0,102520.0,0.00014443]
[1747314055594,1.77627236,102530.0,102520.0,0.01574443]
[1747314055595,1.14821653,102530.0,102520.0,0.01574443]
[1747314055802,0.33823653,102530.0,102520.0,0.01574443]
[1747314056162,0.95716211,102530.0,102520.0,0.00014443]
[1747314056403,0.98986211,102530.0,102520.0,0.00014443]
[1747314056610,1.08717151,102530.0,102520.0,0.00014443]
[1747314056831,1.08917151,102530.0,102520.0,0.00014443]
[1747314057241,1.07307151,102530.0,102520.0,0.00014443]
[1747314057677,1.08761236,102530.0,102520.0,0.00014443]
[1747314057886,1.10351236,102530.0,102520.0,0.00014443]
[1747314060810,1.14279536,102530.0,102520.0,0.00014443]
[1747314061429,1.42172094,102530.0,102520.0,0.00014443]
[1747314061603,1.14279536,102530.0,102520.0,0.00014443]
[1747314061804,1.42172094,102530.0,102520.0,0.00014443]
[1747314062108,1.20131536,102530.0,102520.0,0.00014443]
[1747314062331,1.10400596,102530.0,102520.0,0.00014443]
[1747314062468,1.03548596,102530.0,102520.0,0.00014443]
[1747314063115,1.44772596,102530.0,102520.0,0.00014443]
[1747314063524,1.03548596,102530.0,102520.0,0.00014443]
[1747314063677,1.01958596,102530.0,102520.0,0.00014443]
[1747314063881,1.09243653,102530.0,102520.0,0.03244443]
[1747314065571,0.88675653,102530.0,102520.0,0.03244443]
[1747314065778,0.74272178,102530.0,102520.0,0.03244443]
[1747314065987,0.72808006,102530.0,102520.0,0.03244443]
[1747314066198,0.72808006,102530.0,102520.0,0.0592019]
[1747314066410,1.06807949,102530.0,102520.0,0.25428578]
[1747314066628,0.32563244,102530.0,102520.0,0.26403997]
[1747314066843,0.33538568,102530.0,102520.0,0.0592019]
[1747314067453,0.32563244,102530.0,102520.0,0.25428578]
[1747314067672,0.004,102530.0,102520.0,0.2835472]
[1747314069138,0.004,102530.0,102520.0,0.7930566]
[1747314069139,0.002,102530.0,102520.0,0.7930566]
[1747314069341,0.21450816,102560.0,102550.0,0.21451047]
[1747314069581,0.23776226,102570.0,102550.0,0.26716483]
[1747314069829,0.00974953,102560.0,102550.0,0.2769155]
[1747314070099,0.33507166,102570.0,102560.0,0.23565809]
[1747314070100,0.67507109,102570.0,102560.0,0.23565809]
[1747314070336,0.02327509,102570.0,102560.0,0.25515781]
[1747314070551,0.02327509,102570.0,102560.0,0.27926063]
[1747314071417,0.02327509,102570.0,102560.0,0.27940506]
[1747314072709,0.02327509,102570.0,102560.0,0.58219446]
[1747314073355,0.02327509,102570.0,102560.0,0.78875446]
[1747314073581,0.02327509,102570.0,102560.0,0.79831039]
[1747314073794,0.02327509,102570.0,102560.0,0.81285124]
[1747314073795,0.00767509,102570.0,102560.0,0.81285124]
[1747314074202,0.21453269,102610.0,102600.0,0.04134639]
[1747314074439,0.33133307,102610.0,102600.0,0.0669257]
[1747314074645,0.31184304,102610.0,102600.0,0.05717912]
[1747314075068,0.21453364,102610.0,102600.0,0.26185738]
[1747314075286,0.00974487,102610.0,102600.0,0.29109561]
[1747314075474,0.21445098,102610.0,102600.0,0.28134969]
[1747314076150,0.23494101,102610.0,102600.0,0.28134988]
[1747314076343,0.23394101,102610.0,102600.0,0.28134988]
[1747314076570,0.23394243,102610.0,102600.0,0.05717912]
[1747314076789,0.2241968,102610.0,102600.0,0.26285738]
[1747314076989,0.23394234,102610.0,102600.0,0.27260368]
[1747314077403,0.22419728,102610.0,102600.0,0.0326]
[1747314077576,0.22419728,102610.0,102600.0,0.20567816]
[1747314077929,0.21445127,102610.0,102600.0,0.23042446]
[1747314078228,0.22419671,102610.0,102600.0,0.24582446]
[1747314078530,4.828e-05,102610.0,102600.0,0.26531658]
[1747314078694,4.828e-05,102610.0,102600.0,0.31231798]
[1747314078857,0.00979315,102610.0,102600.0,0.31231798]
[1747314079065,4.828e-05,102610.0,102600.0,0.31231798]
[1747314080496,4.828e-05,102610.0,102600.0,0.61478738]
[1747314080710,4.828e-05,102610.0,102600.0,0.95478738]
[1747314080913,4.828e-05,102610.0,102600.0,1.16022738]
[1747314082165,4.828e-05,102610.0,102600.0,1.17476823]
[1747314087960,4.828e-05,102610.0,102600.0,0.76416823]
[1747314088164,4.828e-05,102610.0,102600.0,0.96956823]
[1747314088505,4.828e-05,102610.0,102600.0,1.15994738]
[1747314089134,0.01953812,102610.0,102600.0,0.74962738]
[1747314089336,0.00979306,102610.0,102600.0,0.95450738]
[1747314089768,4.828e-05,102610.0,102600.0,0.65231798]
[1747314089970,0.00979306,102610.0,102600.0,0.65431798]
[1747314090395,4.828e-05,102610.0,102600.0,0.65431798]
[1747314090612,4.828e-05,102610.0,102600.0,0.65831798]
[1747314090613,0.00104828,102610.0,102600.0,0.65831798]
[1747314091198,0.00104828,102610.0,102600.0,0.25867975]
[1747314091199,0.23494121,102610.0,102600.0,0.25867975]
[1747314091405,0.22519757,102610.0,102600.0,0.0540014]
[1747314091543,0.21545146,102610.0,102600.0,0.25867956]
[1747314091742,0.21545146,102610.0,102600.0,0.0540014]
[1747314091974,0.21545203,102610.0,102600.0,0.0540014]
[1747314092158,0.21545203,102610.0,102600.0,0.007]
[1747314092837,0.21545203,102610.0,102600.0,0.01674658]
[1747314093052,0.21545203,102610.0,102600.0,0.007]
[1747314093186,0.21545203,102610.0,102600.0,0.01674658]
[1747314093399,0.21545203,102610.0,102600.0,0.007]
[1747314094259,0.20570668,102610.0,102600.0,0.007]
[1747314094477,0.59854166,102610.0,102600.0,0.007]
[1747314094661,0.31961608,102610.0,102600.0,0.007]
[1747314094872,0.29327045,102610.0,102600.0,0.007]
[1747314097825,0.20570592,102610.0,102600.0,0.22142446]
[1747314098035,0.23494168,102610.0,102600.0,0.2455186]
[1747314098267,0.22519614,102610.0,102600.0,0.27475759]
[1747314098745,0.22519605,102610.0,102600.0,0.28450351]
[1747314098987,0.23494149,102610.0,102600.0,0.26501148]
[1747314099467,0.24468712,102610.0,102600.0,0.25526509]
[1747314099685,0.24468712,102610.0,102600.0,0.26501148]
[1747314100124,0.23494225,102610.0,102600.0,0.06033341]
[1747314100346,0.23494225,102610.0,102600.0,0.27475768]
[1747314100811,0.23494225,102610.0,102600.0,0.28450379]
[1747314101613,0.22519662,102610.0,102600.0,0.2942498]
[1747314102045,0.22519662,102610.0,102600.0,0.28450379]
[1747314103040,0.23494225,102610.0,102600.0,0.28450379]
[1747314103263,0.22519662,102610.0,102600.0,0.28450379]
[1747314103563,0.21545118,102610.0,102600.0,0.28450379]
[1747314103767,0.23494187,102610.0,102600.0,0.2942498]
[1747314105207,0.23494187,102610.0,102600.0,0.28450322]
[1747314105435,0.00104828,102610.0,102600.0,0.29424914]
[1747314105641,0.00104828,102610.0,102600.0,0.32524914]
[1747314108160,0.02053821,102610.0,102600.0,0.32524914]
[1747314108421,0.01079315,102610.0,102600.0,0.29424914]
[1747314109568,0.21630954,102610.0,102600.0,0.28450322]
[1747314109804,0.02053831,102610.0,102600.0,0.29424914]
[1747314110029,0.02139677,102610.0,102600.0,0.29424914]
[1747314110249,0.03114212,102610.0,102600.0,0.29424914]
[1747314110469,0.51472591,102610.0,102600.0,0.05058683]
[1747314110695,0.52657742,102610.0,102600.0,0.007]
[1747314110924,0.62388682,102610.0,102600.0,0.007]
[1747314111137,0.61414147,102610.0,102600.0,0.007]
[1747314112240,0.31276152,102610.0,102600.0,0.22142465]
[1747314112451,0.32866152,102610.0,102600.0,0.05156155]
[1747314113341,0.30301589,102610.0,102600.0,0.24649332]
[1747314113615,0.22519728,102610.0,102600.0,0.27573221]
[1747314113850,0.22519728,102610.0,102600.0,0.28547832]
[1747314114064,0.01079315,102610.0,102600.0,0.29522424]
[1747314114283,0.02053831,102610.0,102600.0,0.29522424]
[1747314114706,0.03028375,102610.0,102600.0,0.29522424]
[1747314114913,0.03028366,102610.0,102600.0,0.29522424]
[1747314116168,0.02930905,102610.0,102600.0,0.29522424]
[1747314116370,0.23482582,102610.0,102600.0,0.2659862]
[1747314116576,0.23396736,102610.0,102600.0,0.2659862]
[1747314117229,0.24371299,102610.0,102600.0,0.28547832]
[1747314117430,0.24371299,102610.0,102600.0,0.27573231]
[1747314119324,0.23396812,102610.0,102600.0,0.2757324]
[1747314119527,0.23396812,102610.0,102600.0,0.2659862]
[1747314120500,0.23396812,102610.0,102600.0,0.2757324]
[1747314121481,0.0195637,102610.0,102600.0,0.28547832]
[1747314121689,0.02930905,102610.0,102600.0,0.28547832]
[1747314121888,0.0195637,102610.0,102600.0,0.28547832]
[1747314122102,0.02930905,102610.0,102600.0,0.28547832]
[1747314122538,7.367e-05,102610.0,102600.0,0.31627832]
[1747314122746,0.00981854,102610.0,102600.0,0.31627832]
[1747314122954,0.22422153,102610.0,102600.0,0.28547832]
[1747314123390,0.02930867,102610.0,102600.0,0.28547832]
[1747314123811,0.03905402,102610.0,102600.0,0.28547832]
[1747314124013,0.02930867,102610.0,102600.0,0.28547832]
[1747314124708,0.03905402,102610.0,102600.0,0.28547832]
[1747314124911,0.03991248,102610.0,102600.0,0.28547832]
[1747314125137,0.22508085,102610.0,102600.0,0.2562399]
[1747314125349,0.21447695,102610.0,102600.0,0.29522452]
[1747314125558,0.0195637,102610.0,102600.0,0.29522452]
[1747314125819,7.367e-05,102610.0,102600.0,0.31032452]
[1747314126029,0.00981854,102610.0,102600.0,0.32592452]
[1747314126245,0.0195636,102610.0,102600.0,0.32592452]
[1747314126437,0.0195637,102610.0,102600.0,0.32592452]
[1747314127921,0.00981854,102610.0,102600.0,0.32592452]
[1747314128133,0.0195636,102610.0,102600.0,0.32592452]
[1747314128563,0.00981854,102610.0,102600.0,0.32592452]
[1747314128771,7.367e-05,102610.0,102600.0,0.32592452]
[1747314130270,7.367e-05,102610.0,102600.0,0.96727392]
[1747314131131,7.367e-05,102610.0,102600.0,0.96427392]
[1747314131512,0.23382852,102640.0,102630.0,0.21436197]
[1747314131715,0.33162071,102640.0,102630.0,0.24920474]
[1747314131920,0.33162071,102640.0,102630.0,0.22971794]
[1747314132102,0.3383783,102640.0,102630.0,0.02509942]
[1747314132302,0.3383783,102640.0,102630.0,0.03484315]
[1747314132705,0.3383783,102640.0,102630.0,0.04458679]
[1747314132935,0.01996694,102640.0,102630.0,0.24920493]
[1747314133139,0.0208254,102640.0,102630.0,0.24920493]
[1747314133367,0.0208254,102640.0,102630.0,0.258948]
[1747314133643,0.01108318,102640.0,102630.0,0.258948]
[1747314133805,0.02970925,102640.0,102630.0,0.258948]
[1747314134034,0.22656505,102640.0,102630.0,0.258948]
[1747314134169,0.02396684,102640.0,102630.0,0.258948]
[1747314134368,0.02396684,102640.0,102630.0,0.274048]
[1747314135024,0.03370915,102640.0,102630.0,0.274048]
[1747314135431,0.04145165,102640.0,102630.0,0.274048]
[1747314135653,0.04145165,102640.0,102630.0,0.258948]
[1747314135903,0.03170915,102640.0,102630.0,0.258948]
[1747314136370,0.04145165,102640.0,102630.0,0.258948]
[1747314136502,0.01996684,102640.0,102630.0,0.258948]
[1747314136729,0.02970906,102640.0,102630.0,0.274548]
[1747314136929,0.01022472,102640.0,102630.0,0.275548]
[1747314137426,0.00048279,102640.0,102630.0,0.275548]
[1747314137639,0.00048279,102640.0,102630.0,0.290948]
[1747314137852,0.00048279,102640.0,102630.0,0.494788]
[1747314138079,0.00048279,102640.0,102630.0,0.5920974]
[1747314139175,0.00048279,102640.0,102630.0,0.9320974]
[1747314140148,0.00048279,102640.0,102630.0,0.9310974]
[1747314140367,0.00048279,102640.0,102630.0,0.9340974]
[1747314140813,0.00048279,102640.0,102630.0,0.9310974]
[1747314141059,0.00048279,102640.0,102630.0,0.9380974]
[1747314141505,0.00048279,102640.0,102630.0,0.9360974]
[1747314141725,0.00048279,102640.0,102630.0,1.1439774]
[1747314141948,0.00048279,102640.0,102630.0,0.7362574]
[1747314142411,0.00048279,102640.0,102630.0,0.811668]
[1747314142855,0.23430803,102640.0,102630.0,0.25820512]
[1747314143085,0.2559661,102640.0,102630.0,0.25820512]
[1747314143271,0.06110935,102640.0,102630.0,0.27769154]
[1747314143522,0.06196781,102640.0,102630.0,0.27769154]
[1747314143953,0.03056771,102640.0,102630.0,0.27269154]
[1747314144175,0.04031021,102640.0,102630.0,0.26869154]
[1747314144381,0.04031021,102640.0,102630.0,0.27369154]
[1747314144605,0.0208254,102640.0,102630.0,0.27369154]
[1747314144733,0.03056781,102640.0,102630.0,0.27369154]
[1747314144958,0.0208254,102640.0,102630.0,0.27369154]
[1747314145163,0.03056781,102640.0,102630.0,0.27369154]
[1747314145572,0.03056771,102640.0,102630.0,0.27369154]
[1747314146908,0.01108318,102640.0,102630.0,0.27369154]
[1747314147123,0.0208253,102640.0,102630.0,0.27369154]
[1747314147327,0.03056761,102640.0,102630.0,0.27369154]
[1747314147527,0.03056752,102640.0,102630.0,0.27369154]
[1747314147733,0.01108318,102640.0,102630.0,0.27369154]
[1747314147940,0.00048279,102640.0,102630.0,0.30569154]
[1747314148146,0.00048279,102640.0,102630.0,0.40300094]
[1747314150183,0.00048279,102640.0,102630.0,0.60696094]
[1747314153299,0.00048279,102640.0,102630.0,0.27369154]
[1747314153558,0.00048279,102640.0,102630.0,0.68113154]
[1747314153771,0.00048279,102640.0,102630.0,0.47713154]
[1747314154178,0.00048279,102640.0,102630.0,0.49343154]
[1747314154335,0.00048279,102640.0,102630.0,0.50963154]
[1747314155586,0.00048279,102640.0,102630.0,0.27369154]
[1747314155795,0.24122408,102640.0,102630.0,0.27369107]
[1747314156042,0.03576732,102640.0,102630.0,0.27369107]
[1747314156359,0.03662568,102640.0,102630.0,0.27369107]
[1747314157275,0.01108337,102640.0,102630.0,0.27369107]
[1747314157698,0.01022482,102640.0,102630.0,0.27369107]
[1747314157918,0.00048279,102640.0,102630.0,0.27369107]
[1747314159808,0.01022472,102640.0,102630.0,0.27369107]
[1747314160020,0.00048279,102640.0,102630.0,0.27369107]
[1747314160580,0.00048279,102640.0,102630.0,0.28899107]
[1747314160783,0.00048279,102640.0,102630.0,0.30429107]
[1747314164206,0.00048279,102640.0,102630.0,0.27369107]
[1747314167186,0.00048279,102640.0,102630.0,0.28869107]
[1747314167395,0.00048279,102640.0,102630.0,0.30369107]
[1747314171426,0.00048279,102640.0,102630.0,0.26489389]
[1747314172211,0.00048279,102640.0,102630.0,0.45297389]
[1747314172445,0.00048279,102640.0,102630.0,0.43797389]
[1747314173099,0.00048279,102640.0,102630.0,0.43793389]
[1747314179231,0.05106694,102640.0,102630.0,0.23489389]
[1747314179431,0.05106684,102640.0,102630.0,0.43781389]
[1747314179636,0.04132472,102640.0,102630.0,0.43781389]
[1747314179849,0.00048279,102640.0,102630.0,0.43781389]
[1747314180800,0.00048279,102640.0,102630.0,0.47081389]
[1747314181858,0.00048279,102640.0,102630.0,0.43781389]
[1747314184341,0.01588279,102640.0,102630.0,0.43781389]
[1747314184544,0.01588279,102640.0,102630.0,0.21079107]
[1747314184545,0.05096713,102640.0,102630.0,0.21079107]
[1747314184745,0.04122482,102640.0,102630.0,0.21079107]
[1747314184951,0.00048279,102640.0,102630.0,0.21079107]
[1747314185384,0.00048279,102640.0,102630.0,0.24349107]
[1747314186379,0.00048279,102640.0,102630.0,0.22689107]
[1747314186831,0.00048279,102640.0,102630.0,0.24319107]
[1747314188206,0.00048279,102640.0,102630.0,0.34050047]
[1747314188434,0.00048279,102640.0,102630.0,0.68050047]
[1747314190528,0.00048279,102640.0,102630.0,0.67520047]
[1747314192671,0.00048279,102640.0,102630.0,0.68974132]
[1747314194621,0.00048279,102640.0,102630.0,0.68474132]
[1747314194994,0.00048279,102640.0,102630.0,0.69074132]
[1747314198822,0.04114032,102660.0,102650.0,0.22406119]
[1747314199049,0.04114032,102660.0,102650.0,0.22420562]
[1747314199728,0.04114013,102660.0,102650.0,0.22420562]
[1747314199911,0.05088045,102660.0,102650.0,0.22420562]
[1747314200106,0.04114013,102660.0,102650.0,0.22420562]
[1747314200341,0.05088035,102660.0,102650.0,0.22420562]
[1747314200772,0.06062076,102660.0,102650.0,0.22420562]
[1747314200954,0.06062067,102660.0,102650.0,0.22420562]
[1747314201283,0.05088035,102660.0,102650.0,0.22420562]
[1747314203985,0.04114022,102660.0,102650.0,0.22420562]
[1747314204795,0.04114013,102660.0,102650.0,0.22420562]
[1747314205576,0.0314,102660.0,102650.0,0.22420562]
[1747314205732,0.56009097,102680.0,102670.0,0.21427827]
[1747314205933,0.57956791,102680.0,102670.0,0.2483686]
[1747314206162,0.59466791,102680.0,102670.0,0.2483686]
[1747314206808,0.58492958,102680.0,102670.0,0.24836879]
[1747314207011,0.58792958,102680.0,102670.0,0.24836879]
[1747314207224,0.58792958,102680.0,102670.0,0.05356992]
[1747314207961,0.58792958,102680.0,102670.0,0.04382998]
[1747314208157,0.58792958,102680.0,102670.0,0.05356992]
[1747314208395,0.25759535,102680.0,102670.0,0.26784819]
[1747314208604,0.25759535,102680.0,102670.0,0.28732702]
[1747314208889,0.25759535,102680.0,102670.0,0.27758765]
[1747314209061,0.27033425,102680.0,102670.0,0.28732702]
[1747314209298,0.0366,102680.0,102670.0,0.28732635]
[1747314209519,0.01573814,102680.0,102670.0,0.28732635]
[1747314209756,0.02547647,102680.0,102670.0,0.28732635]
[1747314210213,0.00973814,102680.0,102670.0,0.28732635]
[1747314210424,0.01173814,102680.0,102670.0,0.28732635]
[1747314210662,0.01373814,102680.0,102670.0,0.28732635]
[1747314210876,0.01373814,102680.0,102670.0,0.68732635]
[1747314211096,0.004,102680.0,102670.0,0.68732635]
[1747314211475,0.01373833,102680.0,102670.0,0.68732635]
[1747314211688,0.004,102680.0,102670.0,0.68732635]
[1747314212270,0.01373814,102680.0,102670.0,0.68732635]
[1747314212481,0.02347656,102680.0,102670.0,0.68732635]
[1747314212709,0.01373814,102680.0,102670.0,0.68732635]
[1747314212900,0.02347647,102680.0,102670.0,0.68732635]
[1747314213308,0.004,102680.0,102670.0,0.71882635]
[1747314213537,0.004,102680.0,102670.0,0.81613575]
[1747314215413,0.02921261,102690.0,102680.0,0.22399573]
[1747314215600,0.05991261,102690.0,102680.0,0.24883012]
[1747314216739,0.26926985,102690.0,102680.0,0.25856854]
[1747314216994,0.07365046,102690.0,102680.0,0.25856854]
[1747314217228,0.06477107,102690.0,102680.0,0.25856854]
[1747314217813,0.02045846,102690.0,102680.0,0.25856854]
[1747314218016,0.004,102690.0,102680.0,0.25856854]
[1747314218241,0.01373738,102690.0,102680.0,0.25856854]
[1747314218453,0.03957495,102690.0,102680.0,0.25856854]
[1747314218907,0.05457495,102690.0,102680.0,0.25856854]
[1747314219553,0.06431261,102690.0,102680.0,0.25856854]
[1747314220630,0.06517107,102690.0,102680.0,0.25856854]
[1747314222215,0.03595846,102690.0,102680.0,0.02483439]
[1747314222432,0.0351,102690.0,102680.0,0.02483439]
[1747314222815,0.05457523,102690.0,102680.0,0.04431133]
[1747314223219,0.05457523,102690.0,102680.0,0.23909122]
[1747314223369,0.05543369,102690.0,102680.0,0.23909122]
[1747314223802,0.06517154,102690.0,102680.0,0.23909122]
[1747314224033,0.03595846,102690.0,102680.0,0.02483439]
[1747314224218,0.0351,102690.0,102680.0,0.02483439]
[1747314225023,0.0201,102690.0,102680.0,0.02483439]
[1747314225247,0.0201,102690.0,102680.0,0.21961428]
[1747314225463,0.0181,102690.0,102680.0,0.21961428]
[1747314225664,0.0181,102690.0,102680.0,0.22161428]
[1747314225876,0.04333728,102690.0,102680.0,0.23909122]
[1747314226283,0.04133728,102690.0,102680.0,0.24109122]
[1747314226478,0.04133719,102690.0,102680.0,0.24209122]
[1747314226950,0.0161,102690.0,102680.0,0.24209122]
[1747314227163,0.02583719,102690.0,102680.0,0.24109122]
[1747314227369,0.02583719,102690.0,102680.0,0.24209122]
[1747314228033,0.22059812,102690.0,102680.0,0.24209122]
[1747314228247,0.2142355,102690.0,102680.0,0.24209122]
[1747314228478,0.2294355,102690.0,102680.0,0.24209122]
[1747314228693,0.21969812,102690.0,102680.0,0.24209122]
[1747314228905,0.2294355,102690.0,102680.0,0.25183021]
[1747314229118,0.2294355,102690.0,102680.0,0.26156854]
[1747314229338,0.2142355,102690.0,102680.0,0.25183021]
[1747314229784,0.2294355,102690.0,102680.0,0.25183031]
[1747314230202,0.2294355,102690.0,102680.0,0.26156873]
[1747314230415,0.24492333,102700.0,102680.0,0.26156873]
[1747314230637,0.20449821,102690.0,102680.0,0.25183031]
[1747314230855,0.20449812,102690.0,102680.0,0.26156864]
[1747314231063,0.2142355,102690.0,102680.0,0.25183031]
[1747314231272,0.2142355,102690.0,102680.0,0.66056864]
[1747314231922,0.21969812,102690.0,102680.0,0.66056864]
[1747314232159,0.2294354,102690.0,102680.0,0.66056864]
[1747314232580,0.23917287,102690.0,102680.0,0.66056864]
[1747314232781,0.23917278,102690.0,102680.0,0.66056864]
[1747314232983,0.23917278,102690.0,102680.0,0.66156864]
[1747314233190,0.22397278,102690.0,102680.0,0.66156864]
[1747314233555,0.22397278,102690.0,102680.0,0.66056864]
[1747314233753,0.22397278,102690.0,102680.0,0.66156864]
[1747314234156,0.22397278,102690.0,102680.0,0.26156864]
[1747314234583,0.22397278,102690.0,102680.0,0.66156864]
[1747314234987,0.22397278,102690.0,102680.0,0.65183031]
[1747314235186,0.23371025,102690.0,102680.0,0.66156873]
[1747314235367,0.23371025,102690.0,102680.0,0.67130706]
[1747314236385,0.02921185,102690.0,102680.0,0.67130706]
[1747314236590,0.25587278,102690.0,102680.0,0.64209179]
[1747314236806,0.26561035,102690.0,102680.0,0.85363012]
[1747314238160,0.26561035,102690.0,102680.0,0.84389179]
[1747314238365,0.26561035,102690.0,102680.0,0.86336854]
[1747314239721,0.06111185,102690.0,102680.0,0.86336854]
[1747314239925,0.07084942,102690.0,102680.0,0.86336854]
[1747314240152,0.26561035,102690.0,102680.0,0.85363021]
[1747314240533,0.27534811,102690.0,102680.0,0.84389179]
[1747314240676,0.26561035,102690.0,102680.0,0.86336873]
[1747314240887,0.26561149,102690.0,102680.0,0.24209198]
[1747314241545,0.25587354,102690.0,102680.0,0.24209198]
[1747314241749,0.26561139,102690.0,102680.0,0.24209198]
[1747314241905,0.26561139,102690.0,102680.0,0.25183059]
[1747314242354,0.2656113,102690.0,102680.0,0.25183059]
[1747314242749,0.2656113,102690.0,102680.0,0.26156911]
[1747314243166,0.2656113,102690.0,102680.0,0.25183059]
[1747314243576,0.2656113,102690.0,102680.0,0.26156911]
[1747314243956,0.2656113,102690.0,102680.0,0.23235327]
[1747314244166,0.26561177,102690.0,102680.0,0.23235327]
[1747314244375,0.24613616,102690.0,102680.0,0.2518305]
[1747314244817,0.19474962,102700.0,102690.0,0.21423673]
[1747314245059,0.25636032,102700.0,102690.0,0.04382998]
[1747314245300,0.25636032,102700.0,102690.0,0.24832895]
[1747314245546,0.2304151,102700.0,102690.0,0.27754194]
[1747314245779,0.240152,102700.0,102690.0,0.27754203]
[1747314246022,0.2304151,102700.0,102690.0,0.28742384]
[1747314246279,0.2401521,102700.0,102690.0,0.27768656]
[1747314246536,0.2304151,102700.0,102690.0,0.27768656]
[1747314246772,0.01947295,102700.0,102690.0,0.28742337]
[1747314247015,0.00973643,102700.0,102690.0,0.28742337]
[1747314247218,0.01947305,102700.0,102690.0,0.28742337]
[1747314247639,0.21421501,102700.0,102690.0,0.28742337]
[1747314247847,0.00973643,102700.0,102690.0,0.28742337]
[1747314248053,0.01947314,102700.0,102690.0,0.28742337]
[1747314248271,0.21507356,102700.0,102690.0,0.28742337]
[1747314248478,0.2142151,102700.0,102690.0,0.28742337]
[1747314248717,0.223952,102700.0,102690.0,0.27768599]
[1747314248920,0.20447839,102700.0,102690.0,0.28742337]
[1747314249176,0.00973643,102700.0,102690.0,0.27768599]
[1747314249403,0.22395172,102700.0,102690.0,0.68742337]
[1747314249634,0.22395172,102700.0,102690.0,0.67768599]
[1747314250260,0.22395172,102700.0,102690.0,0.65821095]
[1747314250475,0.25008872,102700.0,102690.0,0.65821095]
[1747314250680,0.26658872,102700.0,102690.0,0.65821095]
[1747314250884,0.26658872,102700.0,102690.0,0.66794852]
[1747314251086,0.25685172,102700.0,102690.0,0.66794852]
[1747314251278,0.26658872,102700.0,102690.0,0.66794852]
[1747314251815,0.26658872,102700.0,102690.0,0.65821095]
[1747314252209,0.26658872,102700.0,102690.0,0.66794852]
[1747314252468,0.26658872,102700.0,102690.0,0.65821095]
[1747314252646,0.26658872,102700.0,102690.0,0.25821095]
[1747314253024,0.26658872,102700.0,102690.0,0.66794852]
[1747314253249,0.26658872,102700.0,102690.0,0.65821095]
[1747314253451,0.26658872,102700.0,102690.0,0.64847329]
[1747314253618,0.26658872,102700.0,102690.0,0.65821105]
[1747314253827,0.25008862,102700.0,102690.0,0.66794871]
[1747314254610,0.26528862,102700.0,102690.0,0.66794871]
[1747314255458,0.26528862,102700.0,102690.0,0.65821105]
[1747314255879,0.26528862,102700.0,102690.0,0.66794871]
[1747314256284,0.26528862,102700.0,102690.0,0.26794871]
[1747314256701,0.26528862,102700.0,102690.0,0.66794871]
[1747314256902,0.26528862,102700.0,102690.0,0.44397441]
[1747314257122,1.18090037,102700.0,102690.0,0.00014443]
[1747314257326,1.38234037,102700.0,102690.0,0.00014443]
[1747314257961,1.39688122,102700.0,102690.0,0.00014443]
[1747314258169,1.84712868,102700.0,102690.0,0.00014443]
[1747314258398,1.59824122,102700.0,102690.0,0.00014443]
[1747314258611,1.60124122,102700.0,102690.0,0.00014443]
[1747314258833,1.69855062,102700.0,102690.0,0.00014443]
[1747314259031,1.94743808,102700.0,102690.0,0.00014443]
[1747314259245,2.37795808,102700.0,102690.0,0.00014443]
[1747314259452,0.00974117,102650.0,102640.0,0.46434696]
[1747314259659,0.00974117,102650.0,102640.0,0.48983386]
[1747314259871,0.01948253,102650.0,102640.0,0.47423386]
[1747314260119,0.21431935,102650.0,102640.0,0.47423386]
[1747314260330,0.00974117,102650.0,102640.0,0.47423386]
[1747314260709,0.01948253,102650.0,102640.0,0.47923386]
[1747314260929,0.21431935,102650.0,102640.0,0.46949184]
[1747314261131,0.2240609,102650.0,102640.0,0.48423406]
[1747314261332,0.2240609,102650.0,102640.0,0.47449184]
[1747314261495,0.23996147,102650.0,102640.0,0.01014459]
[1747314261703,0.23996147,102650.0,102640.0,0.27995639]
[1747314261704,0.25576147,102650.0,102640.0,0.27995639]
[1747314262200,0.24601973,102650.0,102640.0,0.29944092]
[1747314262390,0.24601973,102650.0,102640.0,0.28944092]
[1747314262578,0.24601973,102650.0,102640.0,0.26995639]
[1747314262830,0.25576147,102650.0,102640.0,0.19800039]
[1747314262970,0.25576147,102650.0,102640.0,0.20774308]
[1747314263173,0.25576147,102650.0,102640.0,0.00314459]
[1747314263377,0.63549211,102650.0,102640.0,0.00314459]
[1747314263963,0.25592412,102650.0,102640.0,0.00314459]
[1747314264389,0.24602011,102650.0,102640.0,0.00314459]
[1747314264594,0.6255881,102650.0,102640.0,0.00314459]
[1747314264995,0.24602011,102650.0,102640.0,0.19800039]
[1747314265232,0.24602011,102650.0,102640.0,0.25676634]
[1747314265775,0.24602011,102650.0,102640.0,0.25576634]
[1747314266032,0.24602011,102650.0,102640.0,0.25376634]
[1747314266174,0.23627856,102650.0,102640.0,0.00014459]
[1747314266386,0.23627856,102650.0,102640.0,0.19500039]
[1747314266915,0.23627856,102650.0,102640.0,0.20474318]
[1747314267524,0.24584008,102650.0,102640.0,0.20474318]
[1747314267748,0.24584008,102650.0,102640.0,0.25736678]
[1747314268424,0.24584008,102650.0,102640.0,0.06251098]
[1747314268615,0.24584008,102650.0,102640.0,0.05276819]
[1747314268857,0.24584008,102650.0,102640.0,0.20474308]
[1747314269275,0.24584008,102650.0,102640.0,0.00014459]
[1747314269781,0.24584008,102650.0,102640.0,0.20474308]
[1747314269927,0.24584008,102650.0,102640.0,0.21448568]
[1747314270141,0.23627856,102650.0,102640.0,0.27587418]
[1747314270333,0.23627856,102650.0,102640.0,0.28561659]
[1747314271604,0.24602002,102650.0,102640.0,0.28561659]
[1747314271800,0.06092428,102650.0,102640.0,0.29535833]
[1747314272007,0.06178274,102650.0,102640.0,0.29535833]
[1747314273567,0.2663613,102650.0,102640.0,0.29535833]
[1747314273766,0.26550284,102650.0,102640.0,0.24371233]
[1747314275438,0.27524468,102650.0,102640.0,0.24371233]
[1747314275960,0.26550284,102650.0,102640.0,0.24371233]
[1747314276383,0.24970284,102650.0,102640.0,0.24371233]
[1747314277033,0.05486602,102650.0,102640.0,0.24371233]
[1747314277291,0.0306,102660.0,102650.0,0.22406119]
[1747314277498,0.03896155,102660.0,102650.0,0.22406119]
[1747314277726,0.23378025,102660.0,102650.0,0.20457856]
[1747314277940,0.01948235,102650.0,102640.0,0.68133029]
[1747314278132,0.01948235,102650.0,102640.0,0.66613029]
[1747314278495,0.02922381,102650.0,102640.0,0.66613029]
[1747314279223,0.02922381,102650.0,102640.0,0.66813029]
[1747314279372,0.02922381,102650.0,102640.0,0.66913029]
[1747314279573,0.01948235,102650.0,102640.0,0.70153029]
[1747314279778,0.02922381,102650.0,102640.0,0.70153029]
[1747314280216,0.03008227,102650.0,102640.0,0.70153029]